[Event "December 19 Late 2023"]
[Site "https://www.chess.com"]
[Date "2023.12.19"]
[Round "9"]
[White "Khlebovich, Alexander"]
[Black "Rodgers, Jack"]
[Result "1-0"]
[Board "49"]
[TimeControl "180+1"]
[WhiteFideId "4169123"]
[BlackFideId "3220885"]
[WhiteElo "2334"]
[BlackElo "2107"]
[WhiteTeam "RUS"]
[BlackTeam "AUS"]
[WhiteClock "0:00:48"]
[BlackClock "0:00:08"]

1. d4 {[%clk 0:03:00]}  Nf6 {[%clk 0:03:00]} 2. c4 {[%clk 0:03:01]}  c5 {[%clk 0:03:00]} 3. d5 {[%clk 0:03:00]}  e5 {[%clk 0:03:01]} 4. Nc3 {[%clk 0:02:59]}  d6 {[%clk 0:03:01]} 5. g3 {[%clk 0:02:58]}  h5 {[%clk 0:03:00]} 6. Bg2 {[%clk 0:02:59]}  h4 {[%clk 0:03:00]} 7. Bg5 {[%clk 0:02:56]}  h3 {[%clk 0:02:50]} 8. Be4 {[%clk 0:02:54]}  Be7 {[%clk 0:02:43]} 9. Bc2 {[%clk 0:02:53]}  Ng4 {[%clk 0:02:32]} 10. Bxe7 {[%clk 0:02:47]}  Qxe7 {[%clk 0:02:33]} 11. Nf3 {[%clk 0:02:44]}  f5 {[%clk 0:02:21]} 12. Qd2 {[%clk 0:02:44]}  e4 {[%clk 0:02:11]} 13. Nh4 {[%clk 0:02:43]}  Rxh4 {[%clk 0:01:54]} 14. gxh4 {[%clk 0:02:44]}  e3 {[%clk 0:01:49]} 15. fxe3 {[%clk 0:01:57]}  Qxh4+ {[%clk 0:01:47]} 16. Kd1 {[%clk 0:01:57]}  Nf2+ {[%clk 0:01:43]} 17. Kc1 {[%clk 0:01:57]}  Nxh1 {[%clk 0:01:43]} 18. b3 {[%clk 0:01:54]}  Nf2 {[%clk 0:01:35]} 19. Kb2 {[%clk 0:01:54]}  Ng4 {[%clk 0:01:35]} 20. e4 {[%clk 0:01:49]}  g6 {[%clk 0:01:12]} 21. exf5 {[%clk 0:01:44]}  Bxf5 {[%clk 0:01:06]} 22. e4 {[%clk 0:01:43]}  Bd7 {[%clk 0:01:00]} 23. e5 {[%clk 0:01:23]}  dxe5 {[%clk 0:00:55]} 24. Bxg6+ {[%clk 0:01:13]}  Kd8 {[%clk 0:00:53]} 25. Ne4 {[%clk 0:01:12]}  Na6 {[%clk 0:00:49]} 26. Rf1 {[%clk 0:01:01]}  Qh8 {[%clk 0:00:23]} 27. d6 {[%clk 0:00:57]}  Nb4 {[%clk 0:00:17]} 28. Qg5+ {[%clk 0:00:50]}  Kc8 {[%clk 0:00:15]} 29. Bf5 {[%clk 0:00:50]}  Nh6 {[%clk 0:00:10]} 30. Bxd7+ {[%clk 0:00:48]}  Kxd7 {[%clk 0:00:11]} 31. Qe7+ {[%clk 0:00:48]}  Kc6 {[%clk 0:00:08]} 32. Qc7# {[%clk 0:00:48]} 1-0

[Event "December 19 Late 2023"]
[Site "https://www.chess.com"]
[Date "2023.12.19"]
[Round "9"]
[White "Hasanagic, Anel"]
[Black "Tanenbaum, Zachary"]
[Result "0-1"]
[Board "50"]
[TimeControl "180+1"]
[WhiteFideId "14605791"]
[BlackFideId "2060850"]
[WhiteElo "2209"]
[BlackElo "2256"]
[WhiteTeam "SLO"]
[BlackTeam "USA"]
[WhiteClock "0:00:02"]
[BlackClock "0:00:34"]

1. Nf3 {[%clk 0:02:59]}  d5 {[%clk 0:02:59]} 2. b3 {[%clk 0:02:59]}  Bg4 {[%clk 0:02:55]} 3. Bb2 {[%clk 0:03:00]}  Nd7 {[%clk 0:02:53]} 4. h3 {[%clk 0:02:59]}  Bxf3 {[%clk 0:02:52]} 5. gxf3 {[%clk 0:02:59]}  e5 {[%clk 0:02:53]} 6. e3 {[%clk 0:02:55]}  Bd6 {[%clk 0:02:47]} 7. c4 {[%clk 0:02:53]}  Ngf6 {[%clk 0:02:41]} 8. Nc3 {[%clk 0:02:42]}  d4 {[%clk 0:02:39]} 9. exd4 {[%clk 0:02:40]}  exd4 {[%clk 0:02:36]} 10. Qe2+ {[%clk 0:02:31]}  Ne5 {[%clk 0:02:13]} 11. f4 {[%clk 0:02:04]}  O-O {[%clk 0:02:11]} 12. fxe5 {[%clk 0:02:02]}  Bxe5 {[%clk 0:02:11]} 13. Ne4 {[%clk 0:01:26]}  d3 {[%clk 0:02:10]} 14. Nxf6+ {[%clk 0:01:25]}  Bxf6 {[%clk 0:02:09]} 15. Qxd3 {[%clk 0:01:20]}  Qe8+ {[%clk 0:02:08]} 16. Kd1 {[%clk 0:01:12]}  Bxb2 {[%clk 0:02:08]} 17. Rb1 {[%clk 0:01:12]}  Rd8 {[%clk 0:02:05]} 18. Qf3 {[%clk 0:01:04]}  Bc3 {[%clk 0:02:01]} 19. Qxc3 {[%clk 0:01:01]}  Qe4 {[%clk 0:02:00]} 20. Kc1 {[%clk 0:00:49]}  Qxh1 {[%clk 0:01:59]} 21. Kc2 {[%clk 0:00:49]}  Qg1 {[%clk 0:01:49]} 22. Bd3 {[%clk 0:00:43]}  Qxf2 {[%clk 0:01:48]} 23. Rf1 {[%clk 0:00:43]}  Qd4 {[%clk 0:01:47]} 24. Qxd4 {[%clk 0:00:39]}  Rxd4 {[%clk 0:01:48]} 25. Kc3 {[%clk 0:00:37]}  Rfd8 {[%clk 0:01:46]} 26. Rf3 {[%clk 0:00:38]}  Rxd3+ {[%clk 0:01:41]} 27. Rxd3 {[%clk 0:00:37]}  Rxd3+ {[%clk 0:01:42]} 28. Kxd3 {[%clk 0:00:38]}  f5 {[%clk 0:01:40]} 29. Kd4 {[%clk 0:00:38]}  Kf7 {[%clk 0:01:38]} 30. Ke5 {[%clk 0:00:39]}  Kg6 {[%clk 0:01:36]} 31. d4 {[%clk 0:00:35]}  Kg5 {[%clk 0:01:30]} 32. d5 {[%clk 0:00:33]}  f4 {[%clk 0:01:29]} 33. Ke4 {[%clk 0:00:32]}  Kf6 {[%clk 0:01:16]} 34. Kxf4 {[%clk 0:00:32]}  g5+ {[%clk 0:01:16]} 35. Ke4 {[%clk 0:00:27]}  h5 {[%clk 0:00:49]} 36. a3 {[%clk 0:00:25]}  a6 {[%clk 0:00:40]} 37. b4 {[%clk 0:00:18]}  b5 {[%clk 0:00:36]} 38. c5 {[%clk 0:00:14]}  g4 {[%clk 0:00:35]} 39. hxg4 {[%clk 0:00:15]}  hxg4 {[%clk 0:00:36]} 40. Kf4 {[%clk 0:00:04]}  g3 {[%clk 0:00:35]} 41. Kxg3 {[%clk 0:00:04]}  Ke5 {[%clk 0:00:35]} 42. d6 {[%clk 0:00:03]}  cxd6 {[%clk 0:00:35]} 43. cxd6 {[%clk 0:00:04]}  Kxd6 {[%clk 0:00:34]} 44. Kf4 {[%clk 0:00:04]}  Kd5 {[%clk 0:00:34]} 45. Ke3 {[%clk 0:00:02]}  Kc4 {[%clk 0:00:34]} 0-1

[Event "December 19 Late 2023"]
[Site "https://www.chess.com"]
[Date "2023.12.19"]
[Round "9"]
[White "Antunez Soler, Luis"]
[Black "Mkrtchyan, Mikayel"]
[Result "1-0"]
[Board "51"]
[TimeControl "180+1"]
[WhiteFideId "3513335"]
[BlackFideId "13305743"]
[WhiteElo "2154"]
[BlackElo "2033"]
[WhiteTeam "CUB"]
[BlackTeam "ARM"]
[WhiteClock "0:01:25"]
[BlackClock "0:00:02"]

1. e4 {[%clk 0:03:00]}  d6 {[%clk 0:02:49]} 2. d4 {[%clk 0:03:00]}  Nf6 {[%clk 0:02:46]} 3. Nc3 {[%clk 0:03:00]}  g6 {[%clk 0:02:46]} 4. f3 {[%clk 0:03:00]}  Bg7 {[%clk 0:02:44]} 5. Be3 {[%clk 0:03:01]}  O-O {[%clk 0:02:44]} 6. Qd2 {[%clk 0:03:02]}  a6 {[%clk 0:02:43]} 7. O-O-O {[%clk 0:03:02]}  b5 {[%clk 0:02:44]} 8. Bh6 {[%clk 0:03:02]}  Nbd7 {[%clk 0:02:37]} 9. h4 {[%clk 0:03:01]}  c5 {[%clk 0:02:36]} 10. Bxg7 {[%clk 0:02:56]}  Kxg7 {[%clk 0:02:36]} 11. h5 {[%clk 0:02:56]}  cxd4 {[%clk 0:02:33]} 12. Qxd4 {[%clk 0:02:54]}  Qb6 {[%clk 0:02:23]} 13. Qd2 {[%clk 0:02:53]}  Bb7 {[%clk 0:01:59]} 14. hxg6 {[%clk 0:02:52]}  fxg6 {[%clk 0:02:00]} 15. Qh6+ {[%clk 0:02:52]}  Kg8 {[%clk 0:02:00]} 16. Nh3 {[%clk 0:02:52]}  b4 {[%clk 0:01:55]} 17. Bc4+ {[%clk 0:02:51]}  d5 {[%clk 0:01:50]} 18. Nxd5 {[%clk 0:02:47]}  Bxd5 {[%clk 0:01:48]} 19. Rxd5 {[%clk 0:02:37]}  e6 {[%clk 0:01:42]} 20. Rxd7 {[%clk 0:02:16]}  Nxd7 {[%clk 0:01:43]} 21. Ng5 {[%clk 0:02:16]}  Rf7 {[%clk 0:00:43]} 22. Nxf7 {[%clk 0:02:15]}  Kxf7 {[%clk 0:00:36]} 23. Qxh7+ {[%clk 0:02:14]}  Ke8 {[%clk 0:00:37]} 24. Qxg6+ {[%clk 0:02:10]}  Ke7 {[%clk 0:00:35]} 25. Qg7+ {[%clk 0:01:57]}  Kd8 {[%clk 0:00:33]} 26. Rd1 {[%clk 0:01:56]}  Ra7 {[%clk 0:00:30]} 27. Qg8+ {[%clk 0:01:39]}  Ke7 {[%clk 0:00:25]} 28. Qg7+ {[%clk 0:01:39]}  Kd8 {[%clk 0:00:25]} 29. Bb3 {[%clk 0:01:33]}  a5 {[%clk 0:00:22]} 30. Ba4 {[%clk 0:01:32]}  Kc8 {[%clk 0:00:09]} 31. Qg8+ {[%clk 0:01:28]}  Kb7 {[%clk 0:00:02]} 32. Rxd7+ {[%clk 0:01:26]}  Ka6 {[%clk 0:00:03]} 33. Qc8+ {[%clk 0:01:26]}  Rb7 {[%clk 0:00:02]} 34. Qxb7+ {[%clk 0:01:25]}  Qxb7 {[%clk 0:00:03]} 35. Rxb7 {[%clk 0:01:25]}  Kxb7 {[%clk 0:00:02]} 36. e5 {[%clk 0:01:25]} 1-0

[Event "December 19 Late 2023"]
[Site "https://www.chess.com"]
[Date "2023.12.19"]
[Round "9"]
[White "Kotlyar, Kirill"]
[Black "Cobysters"]
[Result "1/2-1/2"]
[Board "53"]
[TimeControl "180+1"]
[WhiteFideId "24145599"]
[WhiteElo "2397"]
[BlackElo "2580"]
[WhiteTeam "RUS"]
[WhiteClock "0:00:21"]
[BlackClock "0:00:15"]

1. e4 {[%clk 0:02:59]}  c5 {[%clk 0:02:59]} 2. Nf3 {[%clk 0:02:59]}  Nc6 {[%clk 0:02:59]} 3. d4 {[%clk 0:02:59]}  cxd4 {[%clk 0:03:00]} 4. Nxd4 {[%clk 0:03:00]}  Nf6 {[%clk 0:03:00]} 5. Nc3 {[%clk 0:03:01]}  d6 {[%clk 0:03:00]} 6. f3 {[%clk 0:02:54]}  e5 {[%clk 0:03:00]} 7. Ndb5 {[%clk 0:02:40]}  Be6 {[%clk 0:02:59]} 8. Bg5 {[%clk 0:02:38]}  a6 {[%clk 0:02:59]} 9. Na3 {[%clk 0:02:38]}  b5 {[%clk 0:02:59]} 10. Nd5 {[%clk 0:02:39]}  Be7 {[%clk 0:03:00]} 11. Bxf6 {[%clk 0:02:38]}  Bxf6 {[%clk 0:02:59]} 12. c3 {[%clk 0:02:39]}  Bg5 {[%clk 0:02:59]} 13. Nc2 {[%clk 0:02:37]}  O-O {[%clk 0:02:58]} 14. a4 {[%clk 0:02:37]}  Rb8 {[%clk 0:02:57]} 15. axb5 {[%clk 0:02:29]}  axb5 {[%clk 0:02:58]} 16. b4 {[%clk 0:02:30]}  f5 {[%clk 0:02:56]} 17. Bd3 {[%clk 0:02:27]}  Ne7 {[%clk 0:02:48]} 18. Nxe7+ {[%clk 0:02:19]}  Qxe7 {[%clk 0:02:49]} 19. exf5 {[%clk 0:02:18]}  Bxf5 {[%clk 0:02:48]} 20. O-O {[%clk 0:02:18]}  Be6 {[%clk 0:02:47]} 21. Na3 {[%clk 0:02:14]}  Bd7 {[%clk 0:02:31]} 22. Qe2 {[%clk 0:02:14]}  Rfc8 {[%clk 0:02:25]} 23. Nxb5 {[%clk 0:01:46]}  Bxb5 {[%clk 0:02:23]} 24. Bxb5 {[%clk 0:01:47]}  Rxc3 {[%clk 0:02:23]} 25. Bc4+ {[%clk 0:01:41]}  Kh8 {[%clk 0:02:19]} 26. b5 {[%clk 0:01:42]}  Qc7 {[%clk 0:02:11]} 27. Ra4 {[%clk 0:01:40]}  h6 {[%clk 0:02:04]} 28. Kh1 {[%clk 0:01:37]}  Re3 {[%clk 0:01:55]} 29. Qa2 {[%clk 0:01:28]}  Qc5 {[%clk 0:01:36]} 30. Ra6 {[%clk 0:01:17]}  Rc3 {[%clk 0:01:30]} 31. Rc6 {[%clk 0:01:13]}  Qd4 {[%clk 0:01:28]} 32. b6 {[%clk 0:00:56]}  d5 {[%clk 0:01:21]} 33. Bxd5 {[%clk 0:00:53]}  Rxc6 {[%clk 0:01:21]} 34. Bxc6 {[%clk 0:00:54]}  Qxb6 {[%clk 0:01:21]} 35. Be4 {[%clk 0:00:44]}  Rd8 {[%clk 0:01:16]} 36. Qf7 {[%clk 0:00:42]}  Qf2 {[%clk 0:01:11]} 37. Ra1 {[%clk 0:00:29]}  Qe2 {[%clk 0:01:02]} 38. Qb3 {[%clk 0:00:19]}  Rd2 {[%clk 0:00:41]} 39. Qb8+ {[%clk 0:00:19]}  Bd8 {[%clk 0:00:41]} 40. Rg1 {[%clk 0:00:19]}  Rd1 {[%clk 0:00:37]} 41. Qa7 {[%clk 0:00:17]}  Rxg1+ {[%clk 0:00:29]} 42. Qxg1 {[%clk 0:00:18]}  Qd2 {[%clk 0:00:28]} 43. Qf1 {[%clk 0:00:18]}  h5 {[%clk 0:00:24]} 44. g3 {[%clk 0:00:17]}  h4 {[%clk 0:00:24]} 45. Qd3 {[%clk 0:00:13]}  Qxd3 {[%clk 0:00:12]} 46. Bxd3 {[%clk 0:00:12]}  g5 {[%clk 0:00:13]} 47. Kg2 {[%clk 0:00:12]}  Kg7 {[%clk 0:00:13]} 48. Kh3 {[%clk 0:00:12]}  hxg3 {[%clk 0:00:13]} 49. hxg3 {[%clk 0:00:12]}  Kf6 {[%clk 0:00:14]} 50. Kg4 {[%clk 0:00:13]}  Bc7 {[%clk 0:00:15]} 51. Be4 {[%clk 0:00:14]}  Bd6 {[%clk 0:00:15]} 52. Bd5 {[%clk 0:00:14]}  Bc5 {[%clk 0:00:15]} 53. Be4 {[%clk 0:00:15]}  Bf2 {[%clk 0:00:16]} 54. Bd5 {[%clk 0:00:15]}  Be3 {[%clk 0:00:15]} 55. Be4 {[%clk 0:00:16]}  Ke7 {[%clk 0:00:15]} 56. Ba8 {[%clk 0:00:16]}  Kd6 {[%clk 0:00:16]} 57. Be4 {[%clk 0:00:17]}  Kc5 {[%clk 0:00:16]} 58. Kf5 {[%clk 0:00:18]}  Kd4 {[%clk 0:00:17]} 59. g4 {[%clk 0:00:17]}  Bf4 {[%clk 0:00:17]} 60. Ke6 {[%clk 0:00:18]}  Ke3 {[%clk 0:00:17]} 61. Kd7 {[%clk 0:00:19]}  Kf2 {[%clk 0:00:17]} 62. Kc8 {[%clk 0:00:20]}  Kg3 {[%clk 0:00:15]} 63. Kb7 {[%clk 0:00:21]} 1/2-1/2

[Event "December 19 Late 2023"]
[Site "https://www.chess.com"]
[Date "2023.12.19"]
[Round "9"]
[White "Lin, Bryan Enming"]
[Black "Novak, Ratko"]
[Result "0-1"]
[Board "54"]
[TimeControl "180+1"]
[WhiteFideId "30987121"]
[BlackFideId "14511827"]
[WhiteElo "2566"]
[BlackElo "2036"]
[WhiteTeam "USA"]
[BlackTeam "CRO"]
[WhiteClock "0:00:00"]
[BlackClock "0:00:18"]

1. e4 {[%clk 0:03:00]}  d5 {[%clk 0:02:59]} 2. exd5 {[%clk 0:03:00]}  c6 {[%clk 0:02:58]} 3. Nf3 {[%clk 0:02:51]}  cxd5 {[%clk 0:02:58]} 4. Ne5 {[%clk 0:02:52]}  Nc6 {[%clk 0:02:56]} 5. d4 {[%clk 0:02:52]}  Nf6 {[%clk 0:02:48]} 6. Bb5 {[%clk 0:02:50]}  Bd7 {[%clk 0:02:47]} 7. Nxd7 {[%clk 0:02:51]}  Qxd7 {[%clk 0:02:47]} 8. c3 {[%clk 0:02:51]}  a6 {[%clk 0:02:47]} 9. Bd3 {[%clk 0:02:51]}  e5 {[%clk 0:02:46]} 10. dxe5 {[%clk 0:02:52]}  Nxe5 {[%clk 0:02:46]} 11. O-O {[%clk 0:02:53]}  Be7 {[%clk 0:02:44]} 12. Re1 {[%clk 0:02:52]}  Nxd3 {[%clk 0:02:43]} 13. Qxd3 {[%clk 0:02:53]}  O-O {[%clk 0:02:44]} 14. Nd2 {[%clk 0:02:53]}  Rad8 {[%clk 0:02:38]} 15. Nf3 {[%clk 0:02:53]}  Bc5 {[%clk 0:02:34]} 16. Be3 {[%clk 0:02:51]}  Bxe3 {[%clk 0:02:31]} 17. Rxe3 {[%clk 0:02:52]}  Rfe8 {[%clk 0:02:26]} 18. Rae1 {[%clk 0:02:48]}  Rxe3 {[%clk 0:02:26]} 19. Rxe3 {[%clk 0:02:47]}  h6 {[%clk 0:02:22]} 20. h3 {[%clk 0:02:45]}  Re8 {[%clk 0:02:20]} 21. Ne5 {[%clk 0:02:44]}  Qa4 {[%clk 0:02:14]} 22. a3 {[%clk 0:02:34]}  Qb3 {[%clk 0:02:08]} 23. Qe2 {[%clk 0:02:25]}  Rd8 {[%clk 0:01:50]} 24. Qd2 {[%clk 0:02:16]}  Re8 {[%clk 0:01:44]} 25. c4 {[%clk 0:02:13]}  Qa2 {[%clk 0:01:34]} 26. Qc2 {[%clk 0:01:59]}  dxc4 {[%clk 0:01:24]} 27. Qd2 {[%clk 0:01:39]}  Qb1+ {[%clk 0:01:08]} 28. Kh2 {[%clk 0:01:39]}  b5 {[%clk 0:01:07]} 29. Qd6 {[%clk 0:01:12]}  Qxb2 {[%clk 0:00:54]} 30. Nd7 {[%clk 0:01:04]}  Rxe3 {[%clk 0:00:44]} 31. Qb8+ {[%clk 0:00:49]}  Ne8 {[%clk 0:00:41]} 32. fxe3 {[%clk 0:00:49]}  Qxa3 {[%clk 0:00:33]} 33. Qxe8+ {[%clk 0:00:48]}  Kh7 {[%clk 0:00:33]} 34. Nf8+ {[%clk 0:00:48]}  Kg8 {[%clk 0:00:33]} 35. Ne6+ {[%clk 0:00:45]}  Kh7 {[%clk 0:00:33]} 36. Qxf7 {[%clk 0:00:17]}  Qd6+ {[%clk 0:00:25]} 37. Nf4 {[%clk 0:00:15]}  c3 {[%clk 0:00:23]} 38. Qf5+ {[%clk 0:00:14]}  Kg8 {[%clk 0:00:21]} 39. Qc8+ {[%clk 0:00:14]}  Kh7 {[%clk 0:00:21]} 40. Qf5+ {[%clk 0:00:11]}  Kg8 {[%clk 0:00:17]} 41. Qc8+ {[%clk 0:00:10]}  Kh7 {[%clk 0:00:17]} 42. Qxc3 {[%clk 0:00:02]}  g5 {[%clk 0:00:17]} 43. Qc2+ {[%clk 0:00:02]}  Kg8 {[%clk 0:00:17]} 44. Qa2+ {[%clk 0:00:01]}  Kh7 {[%clk 0:00:16]} 45. Qc2+ {[%clk 0:00:02]}  Kg8 {[%clk 0:00:17]} 46. Qb3+ {[%clk 0:00:02]}  Kg7 {[%clk 0:00:17]} 47. Qc3+ {[%clk 0:00:02]}  Kg8 {[%clk 0:00:17]} 48. Qb3+ {[%clk 0:00:02]}  Kg7 {[%clk 0:00:17]} 49. Qb2+ {[%clk 0:00:03]}  Kg8 {[%clk 0:00:18]} 50. Qa2+ {[%clk 0:00:03]}  Kg7 {[%clk 0:00:18]} 51. Qa1+ {[%clk 0:00:00]}  Kg8 {[%clk 0:00:18]} 0-1

[Event "December 19 Late 2023"]
[Site "https://www.chess.com"]
[Date "2023.12.19"]
[Round "9"]
[White "Azali, Tannaz"]
[Black "Bardyk, Artem"]
[Result "0-1"]
[Board "58"]
[TimeControl "180+1"]
[WhiteFideId "12537721"]
[BlackFideId "34349979"]
[WhiteElo "1828"]
[BlackElo "2300"]
[WhiteTeam "IRI"]
[BlackTeam "RUS"]
[WhiteClock "0:01:00"]
[BlackClock "0:01:30"]

1. e4 {[%clk 0:02:58]}  e5 {[%clk 0:02:58]} 2. Nf3 {[%clk 0:02:58]}  Nc6 {[%clk 0:02:59]} 3. Bc4 {[%clk 0:02:58]}  Bc5 {[%clk 0:02:59]} 4. c3 {[%clk 0:02:57]}  Nf6 {[%clk 0:02:59]} 5. d4 {[%clk 0:02:57]}  exd4 {[%clk 0:02:59]} 6. cxd4 {[%clk 0:02:58]}  Bb4+ {[%clk 0:02:59]} 7. Bd2 {[%clk 0:02:59]}  Bxd2+ {[%clk 0:02:56]} 8. Nbxd2 {[%clk 0:03:00]}  d5 {[%clk 0:02:57]} 9. exd5 {[%clk 0:02:59]}  Nxd5 {[%clk 0:02:57]} 10. Qb3 {[%clk 0:03:00]}  Na5 {[%clk 0:02:58]} 11. Qa4+ {[%clk 0:02:59]}  Nc6 {[%clk 0:02:59]} 12. Qb3 {[%clk 0:02:59]}  Nce7 {[%clk 0:02:59]} 13. O-O {[%clk 0:02:53]}  O-O {[%clk 0:02:59]} 14. Ne4 {[%clk 0:02:53]}  c6 {[%clk 0:02:57]} 15. Nc5 {[%clk 0:02:52]}  Qb6 {[%clk 0:02:54]} 16. Bxd5 {[%clk 0:02:33]}  Nxd5 {[%clk 0:02:52]} 17. Qd3 {[%clk 0:02:33]}  Re8 {[%clk 0:02:41]} 18. Ng5 {[%clk 0:02:24]}  Nf6 {[%clk 0:02:38]} 19. Rfe1 {[%clk 0:02:20]}  Bg4 {[%clk 0:02:37]} 20. h3 {[%clk 0:02:10]}  Bh5 {[%clk 0:02:35]} 21. b3 {[%clk 0:02:05]}  h6 {[%clk 0:02:26]} 22. Nge4 {[%clk 0:02:04]}  Nxe4 {[%clk 0:02:27]} 23. Rxe4 {[%clk 0:02:04]}  Bg6 {[%clk 0:02:25]} 24. Rxe8+ {[%clk 0:02:04]}  Rxe8 {[%clk 0:02:26]} 25. Qf3 {[%clk 0:02:02]}  Qb4 {[%clk 0:02:24]} 26. Rd1 {[%clk 0:02:00]}  b6 {[%clk 0:02:20]} 27. Nd7 {[%clk 0:02:00]}  Bc2 {[%clk 0:02:04]} 28. Ra1 {[%clk 0:01:50]}  Qxd4 {[%clk 0:02:02]} 29. Rc1 {[%clk 0:01:46]}  Qd2 {[%clk 0:01:55]} 30. Rxc2 {[%clk 0:01:38]}  Qxc2 {[%clk 0:01:55]} 31. Qg4 {[%clk 0:01:32]}  Re1+ {[%clk 0:01:37]} 32. Kh2 {[%clk 0:01:32]}  Qd1 {[%clk 0:01:38]} 33. Nf6+ {[%clk 0:01:28]}  Kf8 {[%clk 0:01:38]} 34. Qc8+ {[%clk 0:01:22]}  Ke7 {[%clk 0:01:37]} 35. Ng8+ {[%clk 0:01:19]}  Kd6 {[%clk 0:01:36]} 36. Qf8+ {[%clk 0:01:18]}  Kc7 {[%clk 0:01:33]} 37. Qxf7+ {[%clk 0:01:15]}  Qd7 {[%clk 0:01:32]} 38. Qf3 {[%clk 0:01:06]}  Re8 {[%clk 0:01:32]} 39. Qg3+ {[%clk 0:01:00]}  Qd6 {[%clk 0:01:30]} 0-1

[Event "December 19 Late 2023"]
[Site "https://www.chess.com"]
[Date "2023.12.19"]
[Round "9"]
[White "Annaberdiyev, Meylis"]
[Black "Crasyhealer"]
[Result "1-0"]
[Board "60"]
[TimeControl "180+1"]
[WhiteFideId "14000563"]
[WhiteElo "2405"]
[BlackElo "2469"]
[WhiteTeam "TKM"]
[WhiteClock "0:00:12"]
[BlackClock "0:00:08"]

1. e4 {[%clk 0:03:00]}  e5 {[%clk 0:02:58]} 2. Nf3 {[%clk 0:03:00]}  Nc6 {[%clk 0:02:58]} 3. Bc4 {[%clk 0:03:00]}  Bc5 {[%clk 0:02:57]} 4. O-O {[%clk 0:02:57]}  Nf6 {[%clk 0:02:57]} 5. d3 {[%clk 0:02:57]}  O-O {[%clk 0:02:57]} 6. Bg5 {[%clk 0:02:56]}  h6 {[%clk 0:02:56]} 7. Bh4 {[%clk 0:02:56]}  d6 {[%clk 0:02:52]} 8. c3 {[%clk 0:02:53]}  g5 {[%clk 0:02:48]} 9. Bg3 {[%clk 0:02:52]}  Bb6 {[%clk 0:02:40]} 10. b4 {[%clk 0:02:36]}  Ne7 {[%clk 0:02:36]} 11. Nbd2 {[%clk 0:02:08]}  Ng6 {[%clk 0:02:35]} 12. Kh1 {[%clk 0:01:58]}  Be6 {[%clk 0:02:22]} 13. Bxe6 {[%clk 0:01:54]}  fxe6 {[%clk 0:02:23]} 14. a4 {[%clk 0:01:54]}  a5 {[%clk 0:02:23]} 15. b5 {[%clk 0:01:48]}  Nf4 {[%clk 0:02:19]} 16. Nc4 {[%clk 0:01:46]}  Ba7 {[%clk 0:02:16]} 17. Ra2 {[%clk 0:01:29]}  Bc5 {[%clk 0:02:04]} 18. d4 {[%clk 0:01:26]}  exd4 {[%clk 0:02:00]} 19. cxd4 {[%clk 0:01:27]}  Bb4 {[%clk 0:01:57]} 20. Qb1 {[%clk 0:01:08]}  Qe8 {[%clk 0:01:41]} 21. Bxf4 {[%clk 0:00:49]}  gxf4 {[%clk 0:01:40]} 22. e5 {[%clk 0:00:50]}  Nd5 {[%clk 0:01:37]} 23. Qd3 {[%clk 0:00:42]}  Nc3 {[%clk 0:01:33]} 24. Rc2 {[%clk 0:00:37]}  Nxa4 {[%clk 0:01:25]} 25. exd6 {[%clk 0:00:23]}  cxd6 {[%clk 0:01:22]} 26. g3 {[%clk 0:00:13]}  Qh5 {[%clk 0:01:12]} 27. gxf4 {[%clk 0:00:12]}  Rxf4 {[%clk 0:01:09]} 28. Rg1+ {[%clk 0:00:13]}  Kh8 {[%clk 0:01:10]} 29. Rg3 {[%clk 0:00:13]}  Raf8 {[%clk 0:01:05]} 30. Kg2 {[%clk 0:00:11]}  Rg8 {[%clk 0:00:32]} 31. Qe3 {[%clk 0:00:10]}  Qf5 {[%clk 0:00:18]} 32. Re2 {[%clk 0:00:10]}  Rxg3+ {[%clk 0:00:16]} 33. hxg3 {[%clk 0:00:10]}  Rg4 {[%clk 0:00:16]} 34. Qxe6 {[%clk 0:00:10]}  Qxe6 {[%clk 0:00:17]} 35. Rxe6 {[%clk 0:00:10]}  Nc3 {[%clk 0:00:17]} 36. Rxh6+ {[%clk 0:00:10]}  Kg7 {[%clk 0:00:17]} 37. Re6 {[%clk 0:00:11]}  Nxb5 {[%clk 0:00:17]} 38. Re7+ {[%clk 0:00:11]}  Kf6 {[%clk 0:00:17]} 39. Rxb7 {[%clk 0:00:11]}  Nxd4 {[%clk 0:00:18]} 40. Ne3 {[%clk 0:00:11]}  Re4 {[%clk 0:00:17]} 41. Nd5+ {[%clk 0:00:11]}  Ke6 {[%clk 0:00:17]} 42. Nf4+ {[%clk 0:00:09]}  Kf6 {[%clk 0:00:17]} 43. Nd5+ {[%clk 0:00:10]}  Kg6 {[%clk 0:00:17]} 44. Nh4+ {[%clk 0:00:09]}  Kh6 {[%clk 0:00:17]} 45. Nxb4 {[%clk 0:00:09]}  axb4 {[%clk 0:00:15]} 46. Rxb4 {[%clk 0:00:10]}  Kh7 {[%clk 0:00:13]} 47. Nf3 {[%clk 0:00:09]}  Nxf3 {[%clk 0:00:09]} 48. Rxe4 {[%clk 0:00:09]}  Ne5 {[%clk 0:00:10]} 49. Rxe5 {[%clk 0:00:09]}  dxe5 {[%clk 0:00:10]} 50. Kf3 {[%clk 0:00:10]}  Kg6 {[%clk 0:00:11]} 51. Ke4 {[%clk 0:00:10]}  Kf6 {[%clk 0:00:11]} 52. g4 {[%clk 0:00:11]}  Kg5 {[%clk 0:00:11]} 53. f3 {[%clk 0:00:11]}  Kf6 {[%clk 0:00:11]} 54. Kd5 {[%clk 0:00:11]}  e4 {[%clk 0:00:10]} 55. Kxe4 {[%clk 0:00:12]}  Kg5 {[%clk 0:00:11]} 56. Ke5 {[%clk 0:00:12]}  Kg6 {[%clk 0:00:08]} 57. f4 {[%clk 0:00:12]} 1-0